[Event "Late-Titled-Tuesday-Blitz-January-16-2024"]
[Site "Chess.com"]
[Date "2024.01.16"]
[Round "10"]
[White "GoltsevDmitry2000"]
[Black "Yaacovn"]
[Result "1-0"]
[WhiteElo "2779"]
[BlackElo "2903"]
[TimeControl "180+1"]
[EndTime "15:58:14 PST"]
[Termination "GoltsevDmitry2000 won by resignation"]

1. e4 {[%clk 0:03:00.9]} 1... c6 {[%clk 0:03:00.1]} 2. e5 {[%clk 0:03:00.6]}
2... d5 {[%clk 0:03:00.5]} 3. exd6 {[%clk 0:03:01.5]} 3... exd6 {[%clk
0:03:00.8]} 4. d4 {[%clk 0:03:02.4]} 4... Nf6 {[%clk 0:03:01.2]} 5. c4 {[%clk
0:03:03.3]} 5... d5 {[%clk 0:03:01.4]} 6. Nf3 {[%clk 0:03:04.2]} 6... Bb4+
{[%clk 0:03:01]} 7. Nc3 {[%clk 0:03:04.4]} 7... O-O {[%clk 0:03:01.1]} 8. Be2
{[%clk 0:03:04.9]} 8... dxc4 {[%clk 0:03:01.1]} 9. Bxc4 {[%clk 0:03:05.8]} 9...
Re8+ {[%clk 0:03:01.2]} 10. Be3 {[%clk 0:03:05.9]} 10... Be6 {[%clk 0:03:01.3]}
11. Bxe6 {[%clk 0:03:04.6]} 11... Rxe6 {[%clk 0:03:02.2]} 12. O-O {[%clk
0:03:04.5]} 12... Nbd7 {[%clk 0:02:58.4]} 13. Qb3 {[%clk 0:03:03.5]} 13... Qa5
{[%clk 0:02:54.4]} 14. Bd2 {[%clk 0:02:50.9]} 14... Nb6 {[%clk 0:02:48.2]} 15.
Ng5 {[%clk 0:02:33.5]} 15... Re7 {[%clk 0:02:43.7]} 16. Rfe1 {[%clk 0:02:33.3]}
16... Rae8 {[%clk 0:02:36.2]} 17. Re5 {[%clk 0:02:01.8]} 17... Bxc3 {[%clk
0:02:00.2]} 18. Bxc3 {[%clk 0:01:24.8]} 18... Qa4 {[%clk 0:01:55.7]} 19. Rxe7
{[%clk 0:01:06.7]} 19... Rxe7 {[%clk 0:01:53.7]} 20. Bb4 {[%clk 0:01:06.9]}
20... Qxb3 {[%clk 0:01:42.5]} 21. axb3 {[%clk 0:01:07.8]} 21... Re8 {[%clk
0:01:37.5]} 22. Rxa7 {[%clk 0:01:05.1]} 22... Nbd5 {[%clk 0:01:35.1]} 23. Bd2
{[%clk 0:01:02.5]} 23... h6 {[%clk 0:01:19.6]} 24. Nf3 {[%clk 0:01:01.9]} 24...
Ne4 {[%clk 0:01:11.1]} 25. Rxb7 {[%clk 0:00:32.3]} 25... Nxd2 {[%clk 0:01:08.8]}
26. Nxd2 {[%clk 0:00:33.2]} 26... Re2 {[%clk 0:01:00.4]} 27. Nf1 {[%clk
0:00:33.1]} 27... Rxb2 {[%clk 0:01:00.5]} 28. g3 {[%clk 0:00:30.3]} 28... Nc3
{[%clk 0:00:58.1]} 29. Rc7 {[%clk 0:00:15.3]} 29... Ne2+ {[%clk 0:00:55.8]} 30.
Kg2 {[%clk 0:00:15.4]} 30... Nxd4 {[%clk 0:00:56.5]} 31. Rd7 {[%clk 0:00:11.3]}
31... c5 {[%clk 0:00:49.8]} 32. Ne3 {[%clk 0:00:11.7]} 32... Rxb3 {[%clk
0:00:44.6]} 33. Nc4 {[%clk 0:00:09.9]} 33... Rb8 {[%clk 0:00:34.5]} 34. Nd6
{[%clk 0:00:10.1]} 34... Rf8 {[%clk 0:00:33.9]} 35. Rc7 {[%clk 0:00:10.2]} 35...
Ne6 {[%clk 0:00:34.3]} 36. Rc6 {[%clk 0:00:10]} 36... Rd8 {[%clk 0:00:32.9]} 37.
Nf5 {[%clk 0:00:05.7]} 37... h5 {[%clk 0:00:28]} 38. Nd6 {[%clk 0:00:04.5]}
38... Nd4 {[%clk 0:00:24.7]} 39. Rb6 {[%clk 0:00:04.7]} 39... g6 {[%clk
0:00:23.6]} 40. h4 {[%clk 0:00:04.5]} 40... Kf8 {[%clk 0:00:22.8]} 41. Nc4
{[%clk 0:00:05]} 41... Rc8 {[%clk 0:00:21.8]} 42. Rb7 {[%clk 0:00:04.8]} 42...
Ne6 {[%clk 0:00:18.6]} 43. Nd6 {[%clk 0:00:03.2]} 43... Rc7 {[%clk 0:00:18.8]}
44. Rb8+ {[%clk 0:00:03.9]} 44... Ke7 {[%clk 0:00:19.4]} 45. Nc4 {[%clk
0:00:04.7]} 45... Nd4 {[%clk 0:00:18.8]} 46. Rb2 {[%clk 0:00:05.2]} 46... Nc6
{[%clk 0:00:19]} 47. Rb6 {[%clk 0:00:05.4]} 47... Nb4 {[%clk 0:00:18.5]} 48. Ne3
{[%clk 0:00:05.8]} 48... Rc8 {[%clk 0:00:17.3]} 49. Rb7+ {[%clk 0:00:05.9]}
49... Kf8 {[%clk 0:00:17.4]} 50. Nc4 {[%clk 0:00:06.6]} 50... Nd5 {[%clk
0:00:17.1]} 51. Nd6 {[%clk 0:00:06.3]} 51... Rc7 {[%clk 0:00:16.6]} 52. Rb8+
{[%clk 0:00:06.9]} 52... Ke7 {[%clk 0:00:17.1]} 53. Nc4 {[%clk 0:00:07.3]} 53...
f6 {[%clk 0:00:17]} 54. Kf3 {[%clk 0:00:06.9]} 54... Nc3 {[%clk 0:00:16.6]} 55.
Rg8 {[%clk 0:00:06.9]} 55... Kf7 {[%clk 0:00:16.1]} 56. Rd8 {[%clk 0:00:06.9]}
56... Nb5 {[%clk 0:00:15.5]} 57. Rb8 {[%clk 0:00:06.4]} 57... Nd4+ {[%clk
0:00:15.4]} 58. Ke4 {[%clk 0:00:06.9]} 58... Ra7 {[%clk 0:00:14.6]} 59. Kd5
{[%clk 0:00:06]} 59... Nf5 {[%clk 0:00:12.6]} 60. Kxc5 {[%clk 0:00:04.8]} 60...
Ra2 {[%clk 0:00:13]} 61. Rb7+ {[%clk 0:00:04.8]} 61... Ke6 {[%clk 0:00:11.8]}
62. Rb6+ {[%clk 0:00:04.6]} 62... Ke7 {[%clk 0:00:11.6]} 63. Rb7+ {[%clk
0:00:05]} 63... Kd8 {[%clk 0:00:11.6]} 64. Rf7 {[%clk 0:00:02.8]} 64... Rxf2
{[%clk 0:00:08.7]} 65. Rxf6 {[%clk 0:00:03.5]} 65... Nxg3 {[%clk 0:00:06.7]} 66.
Rxg6 {[%clk 0:00:04]} 66... Ne4+ {[%clk 0:00:05.9]} 67. Kd4 {[%clk 0:00:04.4]}
67... Rf4 {[%clk 0:00:05.5]} 68. Ke5 {[%clk 0:00:04.2]} 68... Rxh4 {[%clk
0:00:05.8]} 69. Rg8+ {[%clk 0:00:04.5]} 69... Ke7 {[%clk 0:00:05.9]} 70. Rg7+
{[%clk 0:00:05.4]} 70... Kf8 {[%clk 0:00:06.4]} 71. Ra7 {[%clk 0:00:04.4]} 71...
Ng5 {[%clk 0:00:06.8]} 72. Nd6 {[%clk 0:00:04.3]} 72... Rh1 {[%clk 0:00:06.3]}
73. Kf6 {[%clk 0:00:04.6]} 73... Rf1+ {[%clk 0:00:04.7]} 74. Kxg5 {[%clk
0:00:04.5]} 74... h4 {[%clk 0:00:05.4]} 75. Nf5 {[%clk 0:00:04.7]} 75... h3
{[%clk 0:00:05.2]} 76. Rh7 {[%clk 0:00:04.1]} 76... Ke8 {[%clk 0:00:06.1]} 77.
Rxh3 {[%clk 0:00:04.3]} 77... Rg1+ {[%clk 0:00:06.7]} 78. Kf6 {[%clk 0:00:04.5]}
78... Re1 {[%clk 0:00:07.6]} 79. Rd3 {[%clk 0:00:04.5]} 79... Re2 {[%clk
0:00:07.3]} 80. Ng7+ {[%clk 0:00:04.4]} 80... Kf8 {[%clk 0:00:07.6]} 81. Rd8+
{[%clk 0:00:05.1]} 1-0

[Event "Late-Titled-Tuesday-Blitz-January-16-2024"]
[Site "Chess.com"]
[Date "2024.01.16"]
[Round "10"]
[White "Elsa167"]
[Black "Championnn-9"]
[Result "1/2-1/2"]
[WhiteElo "2845"]
[BlackElo "2567"]
[TimeControl "180+1"]
[EndTime "15:58:17 PST"]
[Termination "Game drawn by stalemate"]

1. e4 {[%clk 0:03:00.9]} 1... c5 {[%clk 0:02:58.8]} 2. Nf3 {[%clk 0:02:59.7]}
2... g6 {[%clk 0:02:57]} 3. h4 {[%clk 0:02:56.7]} 3... Nf6 {[%clk 0:02:44.7]} 4.
e5 {[%clk 0:02:54.6]} 4... Nd5 {[%clk 0:02:44.9]} 5. h5 {[%clk 0:02:54.7]} 5...
gxh5 {[%clk 0:02:33.2]} 6. d4 {[%clk 0:02:52]} 6... d6 {[%clk 0:02:26.7]} 7. Bc4
{[%clk 0:02:32.3]} 7... Nb6 {[%clk 0:02:18.7]} 8. Bxf7+ {[%clk 0:02:31.2]} 8...
Kxf7 {[%clk 0:02:18.6]} 9. Ng5+ {[%clk 0:02:31.3]} 9... Ke8 {[%clk 0:02:16.9]}
10. e6 {[%clk 0:01:54]} 10... Bxe6 {[%clk 0:02:17.2]} 11. Nxe6 {[%clk
0:01:53.7]} 11... Qc8 {[%clk 0:02:17.8]} 12. Qxh5+ {[%clk 0:01:53.5]} 12... Kd7
{[%clk 0:02:17.8]} 13. d5 {[%clk 0:01:25.4]} 13... Qe8 {[%clk 0:01:58]} 14. Qf5
{[%clk 0:01:22.9]} 14... Kc8 {[%clk 0:01:51.8]} 15. Nxf8+ {[%clk 0:01:21.1]}
15... N8d7 {[%clk 0:01:51.7]} 16. Nxd7 {[%clk 0:01:20]} 16... Nxd7 {[%clk
0:01:51.5]} 17. Nc3 {[%clk 0:01:16.5]} 17... Rf8 {[%clk 0:01:51.4]} 18. Qxh7
{[%clk 0:01:15.2]} 18... Ne5 {[%clk 0:01:49.3]} 19. f4 {[%clk 0:00:59.5]} 19...
Ng4 {[%clk 0:01:37]} 20. Bd2 {[%clk 0:00:54.1]} 20... Nf6 {[%clk 0:01:30.9]} 21.
Qd3 {[%clk 0:00:52.1]} 21... a6 {[%clk 0:01:28.2]} 22. a4 {[%clk 0:00:51.8]}
22... Rg8 {[%clk 0:01:27.1]} 23. g3 {[%clk 0:00:48]} 23... Ng4 {[%clk
0:01:19.5]} 24. a5 {[%clk 0:00:38.8]} 24... Kc7 {[%clk 0:01:13.9]} 25. Rh4
{[%clk 0:00:38.3]} 25... Qf7 {[%clk 0:01:12.8]} 26. O-O-O {[%clk 0:00:36.8]}
26... Nf2 {[%clk 0:01:12.6]} 27. Qh7 {[%clk 0:00:33.8]} 27... Rg7 {[%clk
0:01:13]} 28. Qh5 {[%clk 0:00:28.2]} 28... Qxh5 {[%clk 0:01:13]} 29. Rxh5 {[%clk
0:00:29.1]} 29... Nxd1 {[%clk 0:01:13.3]} 30. Nxd1 {[%clk 0:00:28.6]} 30... Rxg3
{[%clk 0:01:12.9]} 31. Rh7 {[%clk 0:00:28.8]} 31... Kd7 {[%clk 0:01:12.9]} 32.
b3 {[%clk 0:00:26.2]} 32... Rf8 {[%clk 0:01:11.8]} 33. Ne3 {[%clk 0:00:16.7]}
33... Rxf4 {[%clk 0:01:10.6]} 34. Nc4 {[%clk 0:00:16.9]} 34... Rf1+ {[%clk
0:01:02.6]} 35. Kb2 {[%clk 0:00:17.1]} 35... Rg2 {[%clk 0:00:56.8]} 36. Rh8
{[%clk 0:00:17.5]} 36... e5 {[%clk 0:00:49]} 37. Rh7+ {[%clk 0:00:13.6]} 37...
Kd8 {[%clk 0:00:46.7]} 38. Ne3 {[%clk 0:00:12.6]} 38... Rxd2 {[%clk 0:00:38.9]}
39. Nxf1 {[%clk 0:00:12.8]} 39... Rxd5 {[%clk 0:00:39.6]} 40. Ne3 {[%clk
0:00:12.5]} 40... Rd4 {[%clk 0:00:38.2]} 41. Nc4 {[%clk 0:00:07.4]} 41... e4
{[%clk 0:00:34.3]} 42. Rxb7 {[%clk 0:00:04.6]} 42... d5 {[%clk 0:00:32]} 43. Ne3
{[%clk 0:00:04.8]} 43... Rd2 {[%clk 0:00:30.5]} 44. Rb6 {[%clk 0:00:03.1]} 44...
d4 {[%clk 0:00:30.8]} 45. Nc4 {[%clk 0:00:03.6]} 45... Rh2 {[%clk 0:00:29.4]}
46. Re6 {[%clk 0:00:03.3]} 46... d3 {[%clk 0:00:29.4]} 47. Rxe4 {[%clk
0:00:02.4]} 47... Rxc2+ {[%clk 0:00:28.3]} 48. Kb1 {[%clk 0:00:02.9]} 48... Rc3
{[%clk 0:00:27.9]} 49. Kb2 {[%clk 0:00:03]} 49... Rc2+ {[%clk 0:00:28.4]} 50.
Ka3 {[%clk 0:00:03.6]} 50... d2 {[%clk 0:00:27.5]} 51. Nxd2 {[%clk 0:00:01.9]}
51... Rxd2 {[%clk 0:00:27.8]} 52. Re6 {[%clk 0:00:02.5]} 52... Rd3 {[%clk
0:00:27.2]} 53. Kb2 {[%clk 0:00:01.6]} 53... Kc7 {[%clk 0:00:25.3]} 54. Rxa6
{[%clk 0:00:01.8]} 54... Rd2+ {[%clk 0:00:25.8]} 55. Kc3 {[%clk 0:00:01.8]}
55... Rd4 {[%clk 0:00:26.7]} 56. Rh6 {[%clk 0:00:01.7]} 56... Rg4 {[%clk
0:00:26.7]} 57. Kb2 {[%clk 0:00:01.9]} 57... Rg3 {[%clk 0:00:26.4]} 58. Rh7+
{[%clk 0:00:01.4]} 58... Kc6 {[%clk 0:00:26.5]} 59. a6 {[%clk 0:00:02]} 59...
Rg8 {[%clk 0:00:25]} 60. Kc3 {[%clk 0:00:01.9]} 60... Rg3+ {[%clk 0:00:24.6]}
61. Kb2 {[%clk 0:00:02.5]} 61... Rg8 {[%clk 0:00:24.8]} 62. Ka3 {[%clk
0:00:03.1]} 62... Ra8 {[%clk 0:00:24.4]} 63. Ka4 {[%clk 0:00:03.7]} 63... Kb6
{[%clk 0:00:25]} 64. Rh6+ {[%clk 0:00:03.7]} 64... Kc7 {[%clk 0:00:25.5]} 65.
Ka5 {[%clk 0:00:03.1]} 65... Rg8 {[%clk 0:00:20.8]} 66. a7 {[%clk 0:00:02.8]}
66... Kb7 {[%clk 0:00:20.7]} 67. Rh7+ {[%clk 0:00:02.9]} 67... Ka8 {[%clk
0:00:21.4]} 68. Kb5 {[%clk 0:00:03.4]} 68... c4 {[%clk 0:00:20.9]} 69. bxc4
{[%clk 0:00:01.7]} 69... Rg5+ {[%clk 0:00:20.6]} 70. Kb4 {[%clk 0:00:02.2]}
70... Rb5+ {[%clk 0:00:20]} 71. Kc3 {[%clk 0:00:02.9]} 71... Rb3+ {[%clk
0:00:20.4]} 72. Kd4 {[%clk 0:00:03.6]} 72... Rd3+ {[%clk 0:00:20.8]} 73. Kc5
{[%clk 0:00:03.3]} 73... Rd5+ {[%clk 0:00:21]} 74. Kc6 {[%clk 0:00:03.9]} 74...
Rc5+ {[%clk 0:00:20.6]} 75. Kb6 {[%clk 0:00:04]} 75... Rb5+ {[%clk 0:00:20]} 76.
Kc6 {[%clk 0:00:02.8]} 76... Rc5+ {[%clk 0:00:20.3]} 77. Kd6 {[%clk 0:00:03.4]}
77... Rd5+ {[%clk 0:00:20.8]} 78. Ke6 {[%clk 0:00:03.4]} 78... Re5+ {[%clk
0:00:21.3]} 79. Kf6 {[%clk 0:00:03.9]} 79... Rf5+ {[%clk 0:00:21.9]} 80. Ke7
{[%clk 0:00:03.8]} 80... Re5+ {[%clk 0:00:20.4]} 81. Kd8 {[%clk 0:00:04.1]}
81... Re8+ {[%clk 0:00:18.6]} 82. Kd7 {[%clk 0:00:03.4]} 82... Rd8+ {[%clk
0:00:18.6]} 83. Kc7 {[%clk 0:00:01.8]} 83... Rc8+ {[%clk 0:00:18.4]} 84. Kb6
{[%clk 0:00:01.8]} 84... Rc6+ {[%clk 0:00:18.6]} 85. Kxc6 {[%clk 0:00:01.7]}
1/2-1/2

[Event "Late-Titled-Tuesday-Blitz-January-16-2024"]
[Site "Chess.com"]
[Date "2024.01.16"]
[Round "10"]
[White "Nf3c5"]
[Black "Atousa"]
[Result "0-1"]
[WhiteElo "2552"]
[BlackElo "2478"]
[TimeControl "180+1"]
[EndTime "15:58:20 PST"]
[Termination "Atousa won on time"]

1. e4 {[%clk 0:03:00.9]} 1... e5 {[%clk 0:02:58.4]} 2. Nf3 {[%clk 0:02:59.4]}
2... Nc6 {[%clk 0:02:58.9]} 3. g3 {[%clk 0:02:58.3]} 3... Nf6 {[%clk 0:02:58.5]}
4. d3 {[%clk 0:02:57.7]} 4... Bc5 {[%clk 0:02:56.6]} 5. Bg2 {[%clk 0:02:57.4]}
5... d6 {[%clk 0:02:57]} 6. c3 {[%clk 0:02:57.4]} 6... O-O {[%clk 0:02:57.1]} 7.
O-O {[%clk 0:02:47.3]} 7... a5 {[%clk 0:02:56.7]} 8. a4 {[%clk 0:02:43]} 8...
Re8 {[%clk 0:02:43.8]} 9. Nbd2 {[%clk 0:01:45.5]} 9... Ba7 {[%clk 0:02:37.9]}
10. h3 {[%clk 0:01:44.7]} 10... Be6 {[%clk 0:02:37.4]} 11. Ng5 {[%clk
0:01:43.5]} 11... Bd7 {[%clk 0:02:37.5]} 12. Qb3 {[%clk 0:01:42.7]} 12... Rf8
{[%clk 0:02:34.5]} 13. Nc4 {[%clk 0:01:25.8]} 13... Nh5 {[%clk 0:02:20.2]} 14.
Kh2 {[%clk 0:01:24.6]} 14... h6 {[%clk 0:02:15.6]} 15. Nf3 {[%clk 0:01:24.4]}
15... Qc8 {[%clk 0:02:09.4]} 16. Be3 {[%clk 0:01:21.2]} 16... Kh8 {[%clk
0:02:07.5]} 17. Bxa7 {[%clk 0:01:20.7]} 17... Rxa7 {[%clk 0:02:07.6]} 18. Ne3
{[%clk 0:01:21.2]} 18... Be6 {[%clk 0:02:05.9]} 19. Qc2 {[%clk 0:01:20.1]} 19...
Ne7 {[%clk 0:02:04.3]} 20. d4 {[%clk 0:01:19.1]} 20... Ng6 {[%clk 0:02:01.4]}
21. Qd1 {[%clk 0:01:15.4]} 21... Nf6 {[%clk 0:01:56.9]} 22. Nd2 {[%clk
0:01:11.5]} 22... Ra8 {[%clk 0:01:55.7]} 23. f4 {[%clk 0:01:08.3]} 23... exf4
{[%clk 0:01:50.4]} 24. gxf4 {[%clk 0:01:08.4]} 24... Nh4 {[%clk 0:01:50.9]} 25.
f5 {[%clk 0:01:07.9]} 25... Nxg2 {[%clk 0:01:51.3]} 26. Kxg2 {[%clk 0:01:04.4]}
26... Bd7 {[%clk 0:01:51.3]} 27. Ng4 {[%clk 0:01:04.4]} 27... Qd8 {[%clk
0:01:49.3]} 28. Nxf6 {[%clk 0:01:03.2]} 28... Qxf6 {[%clk 0:01:49.1]} 29. Qg4
{[%clk 0:00:57.1]} 29... Rfe8 {[%clk 0:01:45]} 30. Rae1 {[%clk 0:00:56.9]} 30...
Bc6 {[%clk 0:01:43.9]} 31. Kh2 {[%clk 0:00:51]} 31... Bxa4 {[%clk 0:01:36]} 32.
Rg1 {[%clk 0:00:51.1]} 32... Bd7 {[%clk 0:01:26.4]} 33. Qh5 {[%clk 0:00:43.4]}
33... d5 {[%clk 0:01:18.6]} 34. e5 {[%clk 0:00:20.5]} 34... Qxf5 {[%clk
0:01:16.8]} 35. Qh4 {[%clk 0:00:21.2]} 35... Ra6 {[%clk 0:01:05.6]} 36. Ref1
{[%clk 0:00:20.9]} 36... Qc2 {[%clk 0:00:58.9]} 37. Rf2 {[%clk 0:00:19.7]} 37...
Rg6 {[%clk 0:00:53.8]} 38. Nf3 {[%clk 0:00:14.2]} 38... Qd3 {[%clk 0:00:50]} 39.
Rg3 {[%clk 0:00:12.4]} 39... Rxg3 {[%clk 0:00:43.1]} 40. Qxg3 {[%clk 0:00:12.3]}
40... Re6 {[%clk 0:00:42.6]} 41. Qf4 {[%clk 0:00:11.9]} 41... Be8 {[%clk
0:00:32.2]} 42. Nh4 {[%clk 0:00:12]} 42... Qe4 {[%clk 0:00:30]} 43. Qg3 {[%clk
0:00:11.7]} 43... a4 {[%clk 0:00:24.3]} 44. Rf4 {[%clk 0:00:11.8]} 44... Qc2+
{[%clk 0:00:23.7]} 45. Rf2 {[%clk 0:00:12.4]} 45... Qb1 {[%clk 0:00:23.9]} 46.
Rg2 {[%clk 0:00:12.6]} 46... Qh7 {[%clk 0:00:22.7]} 47. Nf5 {[%clk 0:00:11.5]}
47... Rg6 {[%clk 0:00:20.6]} 48. Qf2 {[%clk 0:00:10.4]} 48... Rxg2+ {[%clk
0:00:20.7]} 49. Kxg2 {[%clk 0:00:11.3]} 49... Bd7 {[%clk 0:00:20.5]} 50. Ne3
{[%clk 0:00:11.4]} 50... Qe4+ {[%clk 0:00:20.4]} 51. Kh2 {[%clk 0:00:11.9]}
51... Kg8 {[%clk 0:00:20.7]} 52. Nf1 {[%clk 0:00:12.1]} 52... Qf5 {[%clk
0:00:20.6]} 53. Qg2 {[%clk 0:00:11.2]} 53... b5 {[%clk 0:00:18.9]} 54. Ng3
{[%clk 0:00:11.8]} 54... Qe6 {[%clk 0:00:18.5]} 55. Qf1 {[%clk 0:00:10.5]} 55...
c6 {[%clk 0:00:17.4]} 56. Nh5 {[%clk 0:00:10.6]} 56... Qg6 {[%clk 0:00:16.5]}
57. Qf3 {[%clk 0:00:10.3]} 57... Qc2+ {[%clk 0:00:16]} 58. Kg3 {[%clk
0:00:10.7]} 58... Qxb2 {[%clk 0:00:15.7]} 59. Nxg7 {[%clk 0:00:10.7]} 59... Qc2
{[%clk 0:00:10.7]} 60. Nh5 {[%clk 0:00:08.1]} 60... Qg6+ {[%clk 0:00:10.5]} 61.
Kh2 {[%clk 0:00:08.8]} 61... Bf5 {[%clk 0:00:08.6]} 62. Nf6+ {[%clk 0:00:09.3]}
62... Kf8 {[%clk 0:00:08.8]} 63. Ng4 {[%clk 0:00:07.9]} 63... Bxg4 {[%clk
0:00:08.6]} 64. hxg4 {[%clk 0:00:08.5]} 64... a3 {[%clk 0:00:09.1]} 65. c4
{[%clk 0:00:07.4]} 65... a2 {[%clk 0:00:08.9]} 66. Qa3+ {[%clk 0:00:07.4]} 66...
Kg7 {[%clk 0:00:08]} 67. Qxa2 {[%clk 0:00:08]} 67... Qxg4 {[%clk 0:00:08.1]} 68.
cxd5 {[%clk 0:00:07.7]} 68... Qf4+ {[%clk 0:00:08.4]} 69. Kg2 {[%clk 0:00:07.3]}
69... Qe4+ {[%clk 0:00:08.9]} 70. Kh2 {[%clk 0:00:07.5]} 70... Qxd5 {[%clk
0:00:09.4]} 71. Qf2 {[%clk 0:00:07.5]} 71... Qe6 {[%clk 0:00:08.7]} 72. Qg3+
{[%clk 0:00:07.9]} 72... Qg6 {[%clk 0:00:09.1]} 73. Qf4 {[%clk 0:00:07.6]} 73...
Qh5+ {[%clk 0:00:08.9]} 74. Kg3 {[%clk 0:00:06.4]} 74... Qg5+ {[%clk 0:00:09.4]}
75. Kf3 {[%clk 0:00:05.9]} 75... Qxf4+ {[%clk 0:00:09.9]} 76. Kxf4 {[%clk
0:00:06.8]} 76... h5 {[%clk 0:00:10.5]} 77. Kg5 {[%clk 0:00:05.6]} 77... b4
{[%clk 0:00:11.1]} 78. Kf5 {[%clk 0:00:03.1]} 78... b3 {[%clk 0:00:11.4]} 79. e6
{[%clk 0:00:04]} 79... fxe6+ {[%clk 0:00:11.4]} 80. Kxe6 {[%clk 0:00:04.9]}
80... b2 {[%clk 0:00:11.9]} 81. Kd6 {[%clk 0:00:05.8]} 81... b1=Q {[%clk
0:00:12.4]} 82. d5 {[%clk 0:00:06.7]} 82... cxd5 {[%clk 0:00:12.1]} 0-1

[Event "Late-Titled-Tuesday-Blitz-January-16-2024"]
[Site "Chess.com"]
[Date "2024.01.16"]
[Round "10"]
[White "Gryffindorac8"]
[Black "WPWPWP-2015"]
[Result "1-0"]
[WhiteElo "2413"]
[BlackElo "2539"]
[TimeControl "180+1"]
[EndTime "15:58:21 PST"]
[Termination "Gryffindorac8 won by checkmate"]

1. d4 {[%clk 0:03:00.9]} 1... Nf6 {[%clk 0:02:59.2]} 2. c4 {[%clk 0:03:01.1]}
2... e6 {[%clk 0:02:59.6]} 3. Nf3 {[%clk 0:03:01.1]} 3... b6 {[%clk 0:02:58.9]}
4. g3 {[%clk 0:03:00.7]} 4... Ba6 {[%clk 0:02:58.7]} 5. Qc2 {[%clk 0:02:58]}
5... Bb7 {[%clk 0:02:57.1]} 6. Bg2 {[%clk 0:02:57.7]} 6... Be7 {[%clk
0:02:56.9]} 7. O-O {[%clk 0:02:57.4]} 7... O-O {[%clk 0:02:56.9]} 8. Nc3 {[%clk
0:02:55.8]} 8... d5 {[%clk 0:02:56.1]} 9. cxd5 {[%clk 0:02:52.7]} 9... exd5
{[%clk 0:02:54.3]} 10. Bf4 {[%clk 0:02:52.4]} 10... a6 {[%clk 0:02:52.3]} 11.
Rfd1 {[%clk 0:02:29.7]} 11... Nbd7 {[%clk 0:02:47.3]} 12. Rac1 {[%clk
0:02:27.4]} 12... Rc8 {[%clk 0:02:47]} 13. Ne5 {[%clk 0:02:09]} 13... Re8 {[%clk
0:02:43.9]} 14. e4 {[%clk 0:01:55.5]} 14... Nf8 {[%clk 0:02:31.7]} 15. exd5
{[%clk 0:01:30.4]} 15... Nxd5 {[%clk 0:02:31.5]} 16. Nxd5 {[%clk 0:01:30.3]}
16... Bxd5 {[%clk 0:02:30.8]} 17. Nc6 {[%clk 0:01:29.4]} 17... Qd7 {[%clk
0:02:23.3]} 18. Bxd5 {[%clk 0:00:52.6]} 18... Qxd5 {[%clk 0:02:22.8]} 19. Nxe7+
{[%clk 0:00:47]} 19... Rxe7 {[%clk 0:02:23.7]} 20. Qc4 {[%clk 0:00:44.2]} 20...
Qxc4 {[%clk 0:02:16.2]} 21. Rxc4 {[%clk 0:00:45.1]} 21... Ne6 {[%clk 0:02:15.1]}
22. Be3 {[%clk 0:00:41.3]} 22... Rd7 {[%clk 0:02:13.5]} 23. d5 {[%clk
0:00:39.1]} 23... Rcd8 {[%clk 0:02:10.6]} 24. Bf4 {[%clk 0:00:28.5]} 24... g5
{[%clk 0:00:49.8]} 25. Be5 {[%clk 0:00:23.2]} 25... Rxd5 {[%clk 0:00:49.2]} 26.
Rxd5 {[%clk 0:00:20.3]} 26... Rxd5 {[%clk 0:00:49]} 27. Bxc7 {[%clk 0:00:21.2]}
27... b5 {[%clk 0:00:48.9]} 28. Rc1 {[%clk 0:00:17.8]} 28... f6 {[%clk
0:00:44.7]} 29. Ba5 {[%clk 0:00:15.9]} 29... Nd4 {[%clk 0:00:41.8]} 30. Kf1
{[%clk 0:00:13.6]} 30... Nf3 {[%clk 0:00:39.5]} 31. Bc3 {[%clk 0:00:12.9]} 31...
Kf7 {[%clk 0:00:38.2]} 32. Kg2 {[%clk 0:00:12.3]} 32... g4 {[%clk 0:00:38.2]}
33. h3 {[%clk 0:00:12.6]} 33... h5 {[%clk 0:00:37.9]} 34. hxg4 {[%clk
0:00:12.8]} 34... hxg4 {[%clk 0:00:38.2]} 35. Rh1 {[%clk 0:00:13.7]} 35... Kg6
{[%clk 0:00:35.9]} 36. Rh8 {[%clk 0:00:13.6]} 36... Rd1 {[%clk 0:00:35.2]} 37.
Rh1 {[%clk 0:00:12.7]} 37... Rxh1 {[%clk 0:00:20.6]} 38. Kxh1 {[%clk 0:00:13.6]}
38... Kf5 {[%clk 0:00:20.6]} 39. Kg2 {[%clk 0:00:14]} 39... Ke6 {[%clk
0:00:20.7]} 40. Kf1 {[%clk 0:00:13.9]} 40... f5 {[%clk 0:00:18.8]} 41. Ke2
{[%clk 0:00:14.1]} 41... Kd5 {[%clk 0:00:17.5]} 42. Ke3 {[%clk 0:00:14.5]} 42...
Ke6 {[%clk 0:00:16.6]} 43. Kf4 {[%clk 0:00:14.5]} 43... Ng1 {[%clk 0:00:11.8]}
44. Ke3 {[%clk 0:00:13]} 44... Nf3 {[%clk 0:00:11.4]} 45. Kf4 {[%clk 0:00:12.7]}
45... Ng1 {[%clk 0:00:11.8]} 46. Ke3 {[%clk 0:00:12.7]} 46... Kf7 {[%clk
0:00:11.6]} 47. Kd4 {[%clk 0:00:10.6]} 47... Nf3+ {[%clk 0:00:10.6]} 48. Kc5
{[%clk 0:00:10.2]} 48... Ke6 {[%clk 0:00:10.7]} 49. Kb6 {[%clk 0:00:10.2]} 49...
Kd5 {[%clk 0:00:11]} 50. Kxa6 {[%clk 0:00:10.1]} 50... Kc6 {[%clk 0:00:11.3]}
51. Ka5 {[%clk 0:00:08.1]} 51... Ng5 {[%clk 0:00:11.5]} 52. Kb4 {[%clk
0:00:07.5]} 52... Ne4 {[%clk 0:00:11.9]} 53. Bd4 {[%clk 0:00:07.9]} 53... Nd6
{[%clk 0:00:11.4]} 54. b3 {[%clk 0:00:06.9]} 54... Kd5 {[%clk 0:00:11.6]} 55.
Be3 {[%clk 0:00:06.1]} 55... Kc6 {[%clk 0:00:11.5]} 56. a4 {[%clk 0:00:06.3]}
56... bxa4 {[%clk 0:00:11.8]} 57. bxa4 {[%clk 0:00:07.2]} 57... Ne4 {[%clk
0:00:11.1]} 58. Kc4 {[%clk 0:00:06.1]} 58... Nf6 {[%clk 0:00:05.9]} 59. Kd4
{[%clk 0:00:05.9]} 59... Nd7 {[%clk 0:00:06.5]} 60. a5 {[%clk 0:00:04.2]} 60...
Kb5 {[%clk 0:00:06.4]} 61. Kd5 {[%clk 0:00:04.8]} 61... Kxa5 {[%clk 0:00:06.2]}
62. Ke6 {[%clk 0:00:05.4]} 62... f4 {[%clk 0:00:05.7]} 63. Kxd7 {[%clk
0:00:04.2]} 63... fxe3 {[%clk 0:00:06.1]} 64. fxe3 {[%clk 0:00:05.1]} 64... Kb5
{[%clk 0:00:06.5]} 65. Ke6 {[%clk 0:00:05.6]} 65... Kc4 {[%clk 0:00:06.9]} 66.
Kf5 {[%clk 0:00:05.8]} 66... Kd3 {[%clk 0:00:07.4]} 67. Kxg4 {[%clk 0:00:05.4]}
67... Kxe3 {[%clk 0:00:08.3]} 68. Kf5 {[%clk 0:00:06]} 68... Kf3 {[%clk
0:00:09]} 69. g4 {[%clk 0:00:06.6]} 69... Ke3 {[%clk 0:00:09.9]} 70. g5 {[%clk
0:00:07.1]} 70... Kd4 {[%clk 0:00:10.5]} 71. g6 {[%clk 0:00:07.6]} 71... Ke3
{[%clk 0:00:11.4]} 72. g7 {[%clk 0:00:08.2]} 72... Kf3 {[%clk 0:00:12.3]} 73.
g8=Q {[%clk 0:00:09.1]} 73... Ke3 {[%clk 0:00:12.8]} 74. Qg4 {[%clk 0:00:09.8]}
74... Kf2 {[%clk 0:00:13.4]} 75. Qh3 {[%clk 0:00:09.1]} 75... Kg1 {[%clk
0:00:13.7]} 76. Ke4 {[%clk 0:00:10]} 76... Kf2 {[%clk 0:00:14]} 77. Qh2+ {[%clk
0:00:10.3]} 77... Kf1 {[%clk 0:00:14.2]} 78. Ke3 {[%clk 0:00:11.2]} 78... Ke1
{[%clk 0:00:15]} 79. Qe2# {[%clk 0:00:11.8]} 1-0